[Event "Late-Titled-Tuesday-Blitz-November-28-2023"]
[Site "Chess.com"]
[Date "2023.11.28"]
[Round "11"]
[White "PawnEatingZombie"]
[Black "Mikhal867"]
[Result "0-1"]
[WhiteElo "2195"]
[BlackElo "2393"]
[TimeControl "180+1"]
[EndTime "16:02:09 PST"]
[Termination "Mikhal867 won on time"]

1. e4 {[%clk 0:03:00.9]} 1... g6 {[%clk 0:02:14.3]} 2. d4 {[%clk 0:02:59.2]}
2... Bg7 {[%clk 0:02:14.4]} 3. c3 {[%clk 0:02:59.8]} 3... d6 {[%clk 0:02:13.6]}
4. Bd3 {[%clk 0:02:59.6]} 4... Nd7 {[%clk 0:02:14.2]} 5. Nf3 {[%clk 0:02:59.7]}
5... e5 {[%clk 0:02:14.1]} 6. O-O {[%clk 0:02:59.4]} 6... Ngf6 {[%clk
0:02:12.9]} 7. Re1 {[%clk 0:03:00]} 7... O-O {[%clk 0:02:12.4]} 8. Nbd2 {[%clk
0:02:59.6]} 8... a6 {[%clk 0:02:03.5]} 9. a4 {[%clk 0:02:59.2]} 9... Re8 {[%clk
0:01:59.1]} 10. dxe5 {[%clk 0:02:57.2]} 10... dxe5 {[%clk 0:01:56.3]} 11. Qc2
{[%clk 0:02:50.1]} 11... Nc5 {[%clk 0:01:55.6]} 12. Bf1 {[%clk 0:02:47.7]} 12...
Nh5 {[%clk 0:01:50.7]} 13. a5 {[%clk 0:02:26]} 13... Nf4 {[%clk 0:01:43.5]} 14.
h3 {[%clk 0:02:09.8]} 14... g5 {[%clk 0:01:40]} 15. Kh2 {[%clk 0:02:08.3]} 15...
g4 {[%clk 0:01:39.6]} 16. hxg4 {[%clk 0:01:59.1]} 16... Bxg4 {[%clk 0:01:39.4]}
17. g3 {[%clk 0:01:54.6]} 17... Nfd3 {[%clk 0:01:32]} 18. Re3 {[%clk 0:01:45.5]}
18... Nxf2 {[%clk 0:01:25.3]} 19. Nc4 {[%clk 0:01:18]} 19... Bxf3 {[%clk
0:01:21]} 20. Rxf3 {[%clk 0:01:16.3]} 20... Nfxe4 {[%clk 0:01:12.8]} 21. Be3
{[%clk 0:01:03.3]} 21... Ng5 {[%clk 0:01:08.3]} 22. Rf5 {[%clk 0:00:57.8]} 22...
Nce6 {[%clk 0:01:05.6]} 23. Rd1 {[%clk 0:00:55]} 23... Qe7 {[%clk 0:00:57]} 24.
Nxe5 {[%clk 0:00:47]} 24... Rad8 {[%clk 0:00:56.3]} 25. Ng4 {[%clk 0:00:32.7]}
25... h5 {[%clk 0:00:54.3]} 26. Nf2 {[%clk 0:00:28.4]} 26... h4 {[%clk
0:00:43.7]} 27. gxh4 {[%clk 0:00:25.3]} 27... Nh7 {[%clk 0:00:43]} 28. Rxd8
{[%clk 0:00:15.4]} 28... Qxh4+ {[%clk 0:00:40.4]} 29. Nh3 {[%clk 0:00:15.4]}
29... Rxd8 {[%clk 0:00:35.8]} 30. Qf2 {[%clk 0:00:12.9]} 30... Qxf2+ {[%clk
0:00:28.9]} 31. Nxf2 {[%clk 0:00:13.5]} 31... Nef8 {[%clk 0:00:17.1]} 32. Bg2
{[%clk 0:00:13.9]} 32... c6 {[%clk 0:00:16.7]} 33. Ne4 {[%clk 0:00:12.3]} 33...
Ng6 {[%clk 0:00:16.1]} 34. Bb6 {[%clk 0:00:10.9]} 34... Rd7 {[%clk 0:00:15.2]}
35. Nc5 {[%clk 0:00:05.1]} 35... Re7 {[%clk 0:00:15.5]} 36. Rf2 {[%clk
0:00:03.6]} 36... Be5+ {[%clk 0:00:15.4]} 37. Kg1 {[%clk 0:00:03.3]} 37... Ng5
{[%clk 0:00:15]} 38. Re2 {[%clk 0:00:03.4]} 38... Bd4+ {[%clk 0:00:14.2]} 39.
Kf1 {[%clk 0:00:03.5]} 39... Rxe2 {[%clk 0:00:13.7]} 40. Kxe2 {[%clk 0:00:03.8]}
40... Bxc5 {[%clk 0:00:13.5]} 41. Bxc5 {[%clk 0:00:04.4]} 41... Nf4+ {[%clk
0:00:13.6]} 42. Ke3 {[%clk 0:00:03.8]} 42... Nxg2+ {[%clk 0:00:13.7]} 0-1

[Event "Late-Titled-Tuesday-Blitz-November-28-2023"]
[Site "Chess.com"]
[Date "2023.11.28"]
[Round "11"]
[White "maurovargas01"]
[Black "oogee"]
[Result "0-1"]
[WhiteElo "1843"]
[BlackElo "2287"]
[TimeControl "180+1"]
[EndTime "16:02:11 PST"]
[Termination "oogee won on time"]

1. e4 {[%clk 0:03:00]} 1... c5 {[%clk 0:02:52.1]} 2. Nc3 {[%clk 0:02:59.8]} 2...
g6 {[%clk 0:02:50.1]} 3. f4 {[%clk 0:03:00.7]} 3... Bg7 {[%clk 0:02:49.4]} 4.
Nf3 {[%clk 0:03:01.6]} 4... Nc6 {[%clk 0:02:48.9]} 5. Bc4 {[%clk 0:03:02.5]}
5... e6 {[%clk 0:02:47.9]} 6. d3 {[%clk 0:03:02.7]} 6... Nge7 {[%clk 0:02:46.9]}
7. a4 {[%clk 0:03:02.8]} 7... O-O {[%clk 0:02:41.3]} 8. O-O {[%clk 0:03:02.6]}
8... d5 {[%clk 0:02:38.9]} 9. Ba2 {[%clk 0:03:01.5]} 9... Nb4 {[%clk 0:02:34.9]}
10. Bb3 {[%clk 0:03:00]} 10... Nbc6 {[%clk 0:02:33.3]} 11. e5 {[%clk 0:02:57.1]}
11... Rb8 {[%clk 0:02:31.2]} 12. Nb5 {[%clk 0:02:56.1]} 12... Bd7 {[%clk
0:02:27.2]} 13. Nd6 {[%clk 0:02:55.1]} 13... Nc8 {[%clk 0:02:21]} 14. Nb5 {[%clk
0:02:50.7]} 14... Nb6 {[%clk 0:02:17.2]} 15. a5 {[%clk 0:02:47.4]} 15... Na8
{[%clk 0:02:15.5]} 16. Nd6 {[%clk 0:02:42.9]} 16... Nc7 {[%clk 0:02:11.4]} 17.
c3 {[%clk 0:02:37.9]} 17... d4 {[%clk 0:02:01.1]} 18. Qe1 {[%clk 0:02:18.7]}
18... Ne8 {[%clk 0:01:39.1]} 19. Ne4 {[%clk 0:02:15.6]} 19... Nxa5 {[%clk
0:01:17.2]} 20. Bc2 {[%clk 0:02:11.7]} 20... dxc3 {[%clk 0:01:06.2]} 21. bxc3
{[%clk 0:02:07.9]} 21... b6 {[%clk 0:01:03.1]} 22. Qg3 {[%clk 0:01:59.5]} 22...
Nc6 {[%clk 0:00:54.8]} 23. Nfg5 {[%clk 0:01:54.3]} 23... h6 {[%clk 0:00:47.1]}
24. Nf3 {[%clk 0:01:53.1]} 24... Ne7 {[%clk 0:00:42.5]} 25. Qh3 {[%clk
0:01:47.4]} 25... f5 {[%clk 0:00:41.3]} 26. exf6 {[%clk 0:01:41.3]} 26... Nxf6
{[%clk 0:00:39.4]} 27. Ne5 {[%clk 0:01:35.3]} 27... Be8 {[%clk 0:00:35.3]} 28.
Bb3 {[%clk 0:01:20.8]} 28... Nfd5 {[%clk 0:00:27.6]} 29. Qxe6+ {[%clk
0:01:10.7]} 29... Kh7 {[%clk 0:00:26.9]} 30. Rxa7 {[%clk 0:00:22.4]} 30... Rf5
{[%clk 0:00:16.7]} 31. g4 {[%clk 0:00:16]} 31... Rf8 {[%clk 0:00:15.8]} 32. Nd6
{[%clk 0:00:08.8]} 32... Ra8 {[%clk 0:00:10.6]} 33. Rxa8 {[%clk 0:00:03.8]}
33... Qxa8 {[%clk 0:00:09.9]} 34. Nxe8 {[%clk 0:00:02.1]} 34... Qxe8 {[%clk
0:00:09.8]} 0-1

[Event "Late-Titled-Tuesday-Blitz-November-28-2023"]
[Site "Chess.com"]
[Date "2023.11.28"]
[Round "11"]
[White "PowerThinking2650"]
[Black "DanylaBagrov"]
[Result "0-1"]
[WhiteElo "2476"]
[BlackElo "2599"]
[TimeControl "180+1"]
[EndTime "16:02:13 PST"]
[Termination "DanylaBagrov won by resignation"]

1. e4 {[%clk 0:03:00.9]} 1... c5 {[%clk 0:02:54.8]} 2. Nf3 {[%clk 0:02:58.9]}
2... a6 {[%clk 0:02:54.9]} 3. c4 {[%clk 0:02:58.3]} 3... Nc6 {[%clk 0:02:54.4]}
4. Nc3 {[%clk 0:02:58.7]} 4... e5 {[%clk 0:02:46.6]} 5. g3 {[%clk 0:02:52.8]}
5... d6 {[%clk 0:02:45.9]} 6. h3 {[%clk 0:02:52.4]} 6... Nf6 {[%clk 0:02:43.4]}
7. Bg2 {[%clk 0:02:51.6]} 7... Rb8 {[%clk 0:02:42.1]} 8. d3 {[%clk 0:02:46.6]}
8... Be7 {[%clk 0:02:39.6]} 9. Bg5 {[%clk 0:02:44.5]} 9... b5 {[%clk 0:02:38.4]}
10. b3 {[%clk 0:02:43.1]} 10... b4 {[%clk 0:02:29.2]} 11. Bxf6 {[%clk
0:02:27.8]} 11... bxc3 {[%clk 0:02:19.7]} 12. Bxg7 {[%clk 0:02:25.9]} 12... Rg8
{[%clk 0:02:20.4]} 13. Bh6 {[%clk 0:02:25.6]} 13... Nd4 {[%clk 0:02:21.1]} 14.
Nxd4 {[%clk 0:02:00.2]} 14... cxd4 {[%clk 0:02:17.6]} 15. O-O {[%clk 0:01:58.1]}
15... Bg5 {[%clk 0:02:13.6]} 16. Bxg5 {[%clk 0:01:53.1]} 16... Qxg5 {[%clk
0:02:14.5]} 17. Kh2 {[%clk 0:01:35.7]} 17... h5 {[%clk 0:02:13.1]} 18. h4 {[%clk
0:01:29.6]} 18... Qg6 {[%clk 0:02:06]} 19. a3 {[%clk 0:01:06.3]} 19... Bg4
{[%clk 0:02:04.5]} 20. Qc2 {[%clk 0:01:00.3]} 20... a5 {[%clk 0:01:52.3]} 21.
Rab1 {[%clk 0:00:55.2]} 21... Kf8 {[%clk 0:01:41.4]} 22. b4 {[%clk 0:00:54.7]}
22... axb4 {[%clk 0:01:39.6]} 23. axb4 {[%clk 0:00:54.2]} 23... Kg7 {[%clk
0:01:38.4]} 24. b5 {[%clk 0:00:49.3]} 24... Qh6 {[%clk 0:01:30.3]} 25. f4 {[%clk
0:00:43.5]} 25... Kh8 {[%clk 0:01:23.8]} 26. fxe5 {[%clk 0:00:30.9]} 26... dxe5
{[%clk 0:01:24.7]} 27. Rxf7 {[%clk 0:00:30.5]} 27... Qe3 {[%clk 0:01:21.7]} 28.
Qf2 {[%clk 0:00:21.3]} 28... Qxf2 {[%clk 0:01:17.3]} 29. Rxf2 {[%clk 0:00:22.2]}
29... Rgf8 {[%clk 0:01:08.9]} 30. Rc2 {[%clk 0:00:14.8]} 30... Rfc8 {[%clk
0:00:54.1]} 31. Bh3 {[%clk 0:00:14]} 31... Rf8 {[%clk 0:00:47.8]} 32. Bxg4
{[%clk 0:00:13.5]} 32... hxg4 {[%clk 0:00:48.7]} 33. Kg2 {[%clk 0:00:13.5]}
33... Kg7 {[%clk 0:00:32]} 34. Rf1 {[%clk 0:00:10.2]} 34... Rxf1 {[%clk
0:00:21.8]} 35. Kxf1 {[%clk 0:00:09.9]} 35... Kf6 {[%clk 0:00:22.1]} 36. Ke2
{[%clk 0:00:08.5]} 36... Ke6 {[%clk 0:00:22.1]} 37. Ra2 {[%clk 0:00:07.7]} 37...
Kd6 {[%clk 0:00:18.8]} 38. Ra6+ {[%clk 0:00:04.1]} 38... Kc5 {[%clk 0:00:19.5]}
39. Rc6+ {[%clk 0:00:04]} 39... Kb4 {[%clk 0:00:20.1]} 40. b6 {[%clk 0:00:04.6]}
40... Kb3 {[%clk 0:00:18.1]} 41. Kd1 {[%clk 0:00:04.4]} 41... Kb2 {[%clk
0:00:17.8]} 42. Rc5 {[%clk 0:00:02.4]} 42... c2+ {[%clk 0:00:17.9]} 43. Ke2
{[%clk 0:00:02.7]} 43... c1=Q {[%clk 0:00:18.6]} 44. Rb5+ {[%clk 0:00:02.7]}
44... Kc3 {[%clk 0:00:18.7]} 45. c5 {[%clk 0:00:03]} 45... Qe3+ {[%clk
0:00:19.1]} 0-1

[Event "Late-Titled-Tuesday-Blitz-November-28-2023"]
[Site "Chess.com"]
[Date "2023.11.28"]
[Round "11"]
[White "StellarChessPro"]
[Black "Hilary46"]
[Result "1/2-1/2"]
[WhiteElo "2539"]
[BlackElo "2634"]
[TimeControl "180+1"]
[EndTime "16:02:27 PST"]
[Termination "Game drawn by agreement"]

1. d4 {[%clk 0:03:00.9]} 1... d5 {[%clk 0:02:59.2]} 2. Bf4 {[%clk 0:02:59.4]}
2... Nf6 {[%clk 0:02:55.6]} 3. e3 {[%clk 0:02:59.8]} 3... c5 {[%clk 0:02:55.6]}
4. Nc3 {[%clk 0:02:59.6]} 4... a6 {[%clk 0:02:34.3]} 5. dxc5 {[%clk 0:02:59.2]}
5... e6 {[%clk 0:02:34]} 6. b4 {[%clk 0:02:48.9]} 6... b6 {[%clk 0:02:30.9]} 7.
Na4 {[%clk 0:02:39.8]} 7... bxc5 {[%clk 0:02:30.9]} 8. Nxc5 {[%clk 0:02:34.9]}
8... Bxc5 {[%clk 0:02:30.5]} 9. bxc5 {[%clk 0:02:35.6]} 9... Qa5+ {[%clk
0:02:30.2]} 10. Qd2 {[%clk 0:02:35.8]} 10... Qxc5 {[%clk 0:02:30.4]} 11. Bd3
{[%clk 0:02:35]} 11... O-O {[%clk 0:02:24.8]} 12. Nf3 {[%clk 0:02:34.6]} 12...
Nc6 {[%clk 0:02:24.1]} 13. O-O {[%clk 0:02:34.1]} 13... a5 {[%clk 0:02:23.2]}
14. Ne5 {[%clk 0:02:31.2]} 14... Ba6 {[%clk 0:02:22.1]} 15. Rfb1 {[%clk
0:02:15.6]} 15... Nb4 {[%clk 0:02:02.3]} 16. a3 {[%clk 0:02:05.8]} 16... Nxd3
{[%clk 0:01:59.1]} 17. cxd3 {[%clk 0:02:06.7]} 17... Rfc8 {[%clk 0:01:56.8]} 18.
h3 {[%clk 0:02:01.3]} 18... h6 {[%clk 0:01:55.5]} 19. Rc1 {[%clk 0:01:55.8]}
19... Qb5 {[%clk 0:01:19.7]} 20. Rxc8+ {[%clk 0:01:24.8]} 20... Rxc8 {[%clk
0:01:16.5]} 21. Rc1 {[%clk 0:01:25.7]} 21... Rxc1+ {[%clk 0:01:10]} 22. Qxc1
{[%clk 0:01:26.6]} 22... Nd7 {[%clk 0:00:52.2]} 23. Nxd7 {[%clk 0:00:58.8]}
23... Qxd7 {[%clk 0:00:53.1]} 24. Qc5 {[%clk 0:00:54.1]} 24... Bxd3 {[%clk
0:00:33.4]} 25. Qxa5 {[%clk 0:00:52]} 25... f6 {[%clk 0:00:31]} 26. Bc7 {[%clk
0:00:40.1]} 26... Kh7 {[%clk 0:00:26.1]} 27. Bb6 {[%clk 0:00:38.6]} 27... e5
{[%clk 0:00:23.9]} 28. Qc3 {[%clk 0:00:38]} 28... Qb5 {[%clk 0:00:17.6]} 29. Ba5
{[%clk 0:00:24.3]} 29... Qb1+ {[%clk 0:00:15.7]} 30. Qe1 {[%clk 0:00:24.1]}
30... Qa2 {[%clk 0:00:14.1]} 31. Bb4 {[%clk 0:00:23.7]} 31... Be4 {[%clk
0:00:12.3]} 32. f3 {[%clk 0:00:23]} 32... Bd3 {[%clk 0:00:12.4]} 33. Kh2 {[%clk
0:00:22.4]} 33... Bc4 {[%clk 0:00:11.7]} 34. Qd2 {[%clk 0:00:20.7]} 34... Qb3
{[%clk 0:00:10.2]} 35. h4 {[%clk 0:00:20]} 35... Kg6 {[%clk 0:00:09.6]} 36. g4
{[%clk 0:00:19.5]} 36... h5 {[%clk 0:00:09.2]} 37. gxh5+ {[%clk 0:00:19.1]}
37... Kxh5 {[%clk 0:00:09.5]} 38. Qg2 {[%clk 0:00:19.2]} 38... Kh6 {[%clk
0:00:09.5]} 39. Bd2 {[%clk 0:00:18.3]} 39... Kh7 {[%clk 0:00:09.6]} 40. h5
{[%clk 0:00:18.5]} 40... Bd3 {[%clk 0:00:08.8]} 41. e4 {[%clk 0:00:18.5]} 41...
dxe4 {[%clk 0:00:06.9]} 42. Qg6+ {[%clk 0:00:18.6]} 42... Kh8 {[%clk 0:00:07.3]}
43. h6 {[%clk 0:00:19.2]} 43... Qg8 {[%clk 0:00:07.1]} 44. a4 {[%clk 0:00:14.1]}
44... gxh6 {[%clk 0:00:03]} 45. Qxf6+ {[%clk 0:00:13.6]} 45... Qg7 {[%clk
0:00:03.5]} 46. Qxh6+ {[%clk 0:00:08]} 46... Qxh6+ {[%clk 0:00:03.2]} 47. Bxh6
{[%clk 0:00:08.9]} 47... exf3 {[%clk 0:00:03.7]} 48. Be3 {[%clk 0:00:08.8]}
48... e4 {[%clk 0:00:03.8]} 49. Kg3 {[%clk 0:00:09.1]} 49... Kg7 {[%clk
0:00:04.4]} 50. a5 {[%clk 0:00:09.4]} 1/2-1/2

[Event "Late-Titled-Tuesday-Blitz-November-28-2023"]
[Site "Chess.com"]
[Date "2023.11.28"]
[Round "11"]
[White "sansanathalia"]
[Black "Nick12772"]
[Result "0-1"]
[WhiteElo "2228"]
[BlackElo "2379"]
[TimeControl "180+1"]
[EndTime "16:02:27 PST"]
[Termination "Nick12772 won on time"]

1. e4 {[%clk 0:03:00.9]} 1... e6 {[%clk 0:03:00.2]} 2. d4 {[%clk 0:02:59]} 2...
d5 {[%clk 0:03:01.1]} 3. Nd2 {[%clk 0:02:56.6]} 3... Nf6 {[%clk 0:03:00.9]} 4.
e5 {[%clk 0:02:53.4]} 4... Nfd7 {[%clk 0:03:01]} 5. Bd3 {[%clk 0:02:52.6]} 5...
c5 {[%clk 0:03:01.6]} 6. c3 {[%clk 0:02:52]} 6... Nc6 {[%clk 0:03:02.3]} 7. Ne2
{[%clk 0:02:51.2]} 7... cxd4 {[%clk 0:03:02.6]} 8. cxd4 {[%clk 0:02:50]} 8... f6
{[%clk 0:03:03.3]} 9. exf6 {[%clk 0:02:49.3]} 9... Nxf6 {[%clk 0:03:04.2]} 10.
Nf3 {[%clk 0:02:48.1]} 10... Bd6 {[%clk 0:03:04.8]} 11. O-O {[%clk 0:02:46.5]}
11... Qc7 {[%clk 0:03:05]} 12. Bg5 {[%clk 0:02:43.2]} 12... O-O {[%clk
0:03:05.5]} 13. Rc1 {[%clk 0:02:40.2]} 13... Bd7 {[%clk 0:03:01.3]} 14. h3
{[%clk 0:02:24.7]} 14... Be8 {[%clk 0:03:00.9]} 15. a3 {[%clk 0:02:20.1]} 15...
Bh5 {[%clk 0:02:59.7]} 16. Qc2 {[%clk 0:02:00.3]} 16... Bxf3 {[%clk 0:02:55.9]}
17. gxf3 {[%clk 0:01:59.7]} 17... Rac8 {[%clk 0:02:36]} 18. Kg2 {[%clk
0:01:53.6]} 18... h6 {[%clk 0:02:25.9]} 19. Be3 {[%clk 0:01:50.2]} 19... Nh5
{[%clk 0:02:14.4]} 20. Bb5 {[%clk 0:01:41]} 20... Qf7 {[%clk 0:02:06.9]} 21. Ng1
{[%clk 0:01:37.2]} 21... Nf4+ {[%clk 0:01:56.3]} 22. Kh1 {[%clk 0:01:30.9]}
22... Nxh3 {[%clk 0:01:40.8]} 23. Qe2 {[%clk 0:00:35.9]} 23... Nxg1 {[%clk
0:01:29.6]} 24. Rxg1 {[%clk 0:00:32.7]} 24... Qxf3+ {[%clk 0:01:11.8]} 25. Qxf3
{[%clk 0:00:31.2]} 25... Rxf3 {[%clk 0:01:12.7]} 26. Rg6 {[%clk 0:00:31.2]}
26... Kf7 {[%clk 0:00:55.5]} 27. Rg4 {[%clk 0:00:26.6]} 27... Ne7 {[%clk
0:00:37.7]} 28. Rxc8 {[%clk 0:00:16.3]} 28... Nxc8 {[%clk 0:00:38.6]} 29. Kg2
{[%clk 0:00:16.3]} 29... Rf6 {[%clk 0:00:38.7]} 30. Bd3 {[%clk 0:00:13.4]} 30...
a6 {[%clk 0:00:35.9]} 31. Kf1 {[%clk 0:00:13.7]} 31... b5 {[%clk 0:00:36.1]} 32.
Ke2 {[%clk 0:00:13]} 32... Nb6 {[%clk 0:00:36.7]} 33. Rg1 {[%clk 0:00:11.9]}
33... Nc4 {[%clk 0:00:36.9]} 34. Rc1 {[%clk 0:00:08.8]} 34... Nxb2 {[%clk
0:00:33.1]} 35. Rc6 {[%clk 0:00:07.7]} 35... Bxa3 {[%clk 0:00:26.7]} 36. Rxa6
{[%clk 0:00:06.7]} 36... Nxd3 {[%clk 0:00:25.5]} 37. Rxa3 {[%clk 0:00:05.2]}
37... Nf4+ {[%clk 0:00:25.1]} 38. Kd2 {[%clk 0:00:03.5]} 38... Ng2 {[%clk
0:00:20.8]} 39. Ra7+ {[%clk 0:00:03.7]} 39... Kg6 {[%clk 0:00:20.5]} 40. Rb7
{[%clk 0:00:04.2]} 40... Nxe3 {[%clk 0:00:20]} 41. Kxe3 {[%clk 0:00:04.4]} 41...
h5 {[%clk 0:00:20]} 42. Rxb5 {[%clk 0:00:04.9]} 42... Kf5 {[%clk 0:00:18.3]} 43.
Rb1 {[%clk 0:00:05.8]} 43... Rh6 {[%clk 0:00:18.4]} 44. Rg1 {[%clk 0:00:05.2]}
44... h4 {[%clk 0:00:17.4]} 45. f4 {[%clk 0:00:05]} 45... h3 {[%clk 0:00:17.2]}
46. Rh1 {[%clk 0:00:01.4]} 46... h2 {[%clk 0:00:17.7]} 47. Kf3 {[%clk
0:00:01.5]} 47... Rh3+ {[%clk 0:00:12.1]} 48. Kg2 {[%clk 0:00:01.4]} 48... Kg4
{[%clk 0:00:09.6]} 0-1

[Event "Late-Titled-Tuesday-Blitz-November-28-2023"]
[Site "Chess.com"]
[Date "2023.11.28"]
[Round "11"]
[White "Rodalquilar"]
[Black "Elsa167"]
[Result "0-1"]
[WhiteElo "2752"]
[BlackElo "2909"]
[TimeControl "180+1"]
[EndTime "16:02:37 PST"]
[Termination "Elsa167 won on time"]

1. d4 {[%clk 0:03:00.9]} 1... Nf6 {[%clk 0:02:57.4]} 2. Nf3 {[%clk 0:03:01.1]}
2... g6 {[%clk 0:02:56.5]} 3. Bf4 {[%clk 0:03:01]} 3... Bg7 {[%clk 0:02:55.2]}
4. e3 {[%clk 0:03:01.4]} 4... O-O {[%clk 0:02:55.5]} 5. Be2 {[%clk 0:03:02]}
5... b6 {[%clk 0:02:56]} 6. O-O {[%clk 0:03:02.1]} 6... Bb7 {[%clk 0:02:56.7]}
7. a4 {[%clk 0:03:01.1]} 7... a5 {[%clk 0:02:56.5]} 8. h3 {[%clk 0:02:59.5]}
8... d6 {[%clk 0:02:57]} 9. Bh2 {[%clk 0:02:58.9]} 9... Nbd7 {[%clk 0:02:57.4]}
10. Nbd2 {[%clk 0:02:58.7]} 10... e6 {[%clk 0:02:57.8]} 11. c3 {[%clk
0:02:57.3]} 11... Qe7 {[%clk 0:02:58.3]} 12. Bd3 {[%clk 0:02:57.7]} 12... e5
{[%clk 0:02:58.4]} 13. e4 {[%clk 0:02:58.3]} 13... Rad8 {[%clk 0:02:55.2]} 14.
Re1 {[%clk 0:02:56.1]} 14... Nh5 {[%clk 0:02:51.8]} 15. Nc4 {[%clk 0:02:54.8]}
15... Rfe8 {[%clk 0:02:46]} 16. Ne3 {[%clk 0:02:51.4]} 16... exd4 {[%clk
0:02:25.4]} 17. cxd4 {[%clk 0:02:47.9]} 17... Bxe4 {[%clk 0:02:18.8]} 18. Nd5
{[%clk 0:02:45.9]} 18... Bxd5 {[%clk 0:02:19.3]} 19. Rxe7 {[%clk 0:02:45]} 19...
Rxe7 {[%clk 0:02:20.2]} 20. Rc1 {[%clk 0:02:36.2]} 20... Nf8 {[%clk 0:02:14.5]}
21. Bc4 {[%clk 0:02:25.4]} 21... Bxf3 {[%clk 0:02:00.8]} 22. Qxf3 {[%clk
0:02:24.8]} 22... Bxd4 {[%clk 0:02:00.6]} 23. g4 {[%clk 0:02:05]} 23... Nf6
{[%clk 0:01:59.3]} 24. Rd1 {[%clk 0:01:41.1]} 24... Bxb2 {[%clk 0:01:59.2]} 25.
Rd2 {[%clk 0:01:41.6]} 25... Ba1 {[%clk 0:01:50.1]} 26. Rd1 {[%clk 0:01:41.9]}
26... Bb2 {[%clk 0:01:40.6]} 27. Rd2 {[%clk 0:01:41.2]} 27... Ba1 {[%clk
0:00:46.2]} 28. Qa3 {[%clk 0:01:41]} 28... Be5 {[%clk 0:00:42.7]} 29. f4 {[%clk
0:01:41.4]} 29... Ne4 {[%clk 0:00:39.7]} 30. Re2 {[%clk 0:01:36.8]} 30... Bd4+
{[%clk 0:00:38.9]} 31. Kg2 {[%clk 0:01:37.3]} 31... Bc5 {[%clk 0:00:24.6]} 32.
Qd3 {[%clk 0:00:56.5]} 32... d5 {[%clk 0:00:24.2]} 33. Bxd5 {[%clk 0:00:55.1]}
33... Nf6 {[%clk 0:00:24]} 34. Bxf7+ {[%clk 0:00:30.5]} 34... Kxf7 {[%clk
0:00:23.7]} 35. Qc4+ {[%clk 0:00:28.7]} 35... Ke8 {[%clk 0:00:23]} 36. f5 {[%clk
0:00:24.6]} 36... gxf5 {[%clk 0:00:21.3]} 37. Bxc7 {[%clk 0:00:24.6]} 37... Rd4
{[%clk 0:00:16.8]} 38. Qb5+ {[%clk 0:00:21.6]} 38... Kf7 {[%clk 0:00:13.9]} 39.
Rxe7+ {[%clk 0:00:21]} 39... Bxe7 {[%clk 0:00:09.3]} 40. gxf5 {[%clk 0:00:18.6]}
40... Rd5 {[%clk 0:00:08.6]} 41. Qc4 {[%clk 0:00:15.4]} 41... Kg7 {[%clk
0:00:09.2]} 42. Bxb6 {[%clk 0:00:14.2]} 42... Rxf5 {[%clk 0:00:09.4]} 43. Bd4
{[%clk 0:00:14.6]} 43... Ng6 {[%clk 0:00:07.2]} 44. Qc7 {[%clk 0:00:12.9]} 44...
Kf7 {[%clk 0:00:05.8]} 45. Bc3 {[%clk 0:00:12.6]} 45... Nf4+ {[%clk 0:00:05.1]}
46. Kh2 {[%clk 0:00:10.8]} 46... N4d5 {[%clk 0:00:05.7]} 47. Qc4 {[%clk
0:00:10.5]} 47... Rf2+ {[%clk 0:00:06.2]} 48. Kg1 {[%clk 0:00:10.7]} 48... Rc2
{[%clk 0:00:06.6]} 0-1